fUST/lending_fUST_20250120
["ID","MTS","AMOUNT","RATE_DAILY","PERIOD"]
[349668848,1737364246860,-500.0,0.00022054,3]
[349668849,1737364246871,-500.0,0.00022054,3]
[349668850,1737364246882,-569.72,0.00022054,3]
[349668851,1737364246894,-500.0,0.00022054,3]
[349668852,1737364246904,-500.0,0.00022054,3]
[349668853,1737364246914,-1469.35,0.00022054,3]
[349668854,1737364246926,-449.24958018,0.00022054,3]
[349668855,1737364246942,-500.0,0.00022054,3]
[349668856,1737364246953,-500.0,0.00022054,3]
[349668857,1737364246965,-530.97746241,0.00022054,3]
[349668858,1737364246977,-500.0,0.00022054,3]
[349668859,1737364246988,-500.0,0.00022054,3]
[349668860,1737364246998,-2093.71,0.00022054,3]
[349668861,1737364247010,-500.0,0.00022054,3]
[349668862,1737364247020,-500.85,0.00022054,3]
[349668863,1737364247030,-500.0,0.00022054,3]
[349668864,1737364247040,-500.0,0.00022054,3]
[349668865,1737364247050,-500.0,0.00022054,3]
[349668866,1737364247061,-500.0,0.00022054,3]
[349668867,1737364247071,-1000.16,0.00022054,3]
[349668868,1737364247082,-500.0,0.00022054,3]
[349668869,1737364247092,-500.0,0.00022054,3]
[349668870,1737364247103,-500.0,0.00022054,3]
[349668871,1737364247113,-500.0,0.00022054,3]
[349668872,1737364247123,-500.0,0.00022054,3]
[349668873,1737364247134,-423.01630849,0.0002219,3]
[349668874,1737364247144,-500.0,0.00022191,3]
[349668875,1737364247155,-500.0,0.00022191,3]
[349668876,1737364247165,-500.0,0.00022191,3]
[349668877,1737364247175,-500.0,0.00022191,3]
[349668878,1737364247190,-303.8,0.00022191,3]
[349668879,1737364247200,-500.0,0.00022191,3]
[349668880,1737364247211,-500.0,0.00022191,3]
[349668881,1737364247222,-500.0,0.00022191,3]
[349668882,1737364247232,-500.0,0.00022191,2]
[349668883,1737364247243,-2638.82,0.00022191,3]
[349668884,1737364247253,-784.34,0.00022191,3]
[349668885,1737364247263,-500.0,0.00022191,3]
[349668886,1737364247273,-518.81,0.00022191,3]
[349668887,1737364247283,-2523.23,0.00022191,3]
[349668888,1737364247294,-500.0,0.00022191,3]
[349668889,1737364247304,-6468.15,0.00022191,3]
[349668890,1737364247315,-1364.4,0.00022191,3]
[349668891,1737364247326,-500.0,0.00022191,3]
[349668892,1737364247337,-500.0,0.00022191,3]
[349668893,1737364247348,-156.34,0.00022191,3]
[349668894,1737364247358,-569.72,0.00022191,3]
[349668895,1737364247369,-500.0,0.00022191,3]
[349668896,1737364247380,-500.0,0.00022191,3]
[349668897,1737364247391,-1469.35,0.00022191,3]
[349668898,1737364247404,-500.0,0.00022191,3]
[349668899,1737364247414,-500.0,0.00022191,3]
[349668900,1737364247425,-500.0,0.00022191,3]
[349668901,1737364247441,-500.0,0.00022191,3]
[349668902,1737364247453,-2093.71,0.00022191,3]
[349668903,1737364247465,-500.0,0.00022191,3]
[349668904,1737364247476,-500.85,0.00022191,3]
[349668905,1737364247488,-500.0,0.00022191,3]
[349668906,1737364247502,-500.0,0.00022191,3]
[349668907,1737364247515,-500.0,0.00022191,3]
[349668908,1737364247527,-500.0,0.00022191,3]
[349668909,1737364247538,-1000.16,0.00022191,3]
[349668910,1737364247550,-500.0,0.00022191,3]
[349668911,1737364247563,-500.0,0.00022191,3]
[349668912,1737364247575,-500.0,0.00022191,3]
[349668913,1737364247586,-500.0,0.00022191,3]
[349668914,1737364247597,-500.0,0.00022325,2]
[349668915,1737364247779,-500.0,0.00022325,2]
[349668916,1737364247789,-500.0,0.00022325,2]
[349668917,1737364247799,-500.0,0.00022325,2]
[349668918,1737364247811,-500.0,0.00022325,2]
[349668919,1737364247820,-500.0,0.00022325,2]
[349668920,1737364247830,-500.0,0.00022325,2]
[349668921,1737364247840,-500.0,0.00022325,2]
[349668922,1737364247849,-500.0,0.00022325,2]
[349668923,1737364247859,-500.0,0.00022325,2]
[349668924,1737364247868,-172.48568169,0.00022325,2]
[349668925,1737364247879,-500.0,0.00022325,2]
[349668926,1737364247891,-500.0,0.00022325,2]
[349668927,1737364247900,-500.0,0.00022325,2]
[349668928,1737364247909,-500.0,0.00022325,2]
[349668929,1737364247924,-500.0,0.00022325,2]
[349668930,1737364247936,-500.0,0.00022325,2]
[349668931,1737364247946,-375.49687383,0.00022325,2]
[349668932,1737364247956,-500.0,0.00022325,2]
[349668933,1737364247965,-650.0,0.00022325,2]
[349668934,1737364247975,-500.0,0.00022328,3]
[349668935,1737364247984,-500.0,0.00022328,3]
[349668936,1737364247993,-500.0,0.00022328,3]
[349668937,1737364248003,-500.0,0.00022328,3]
[349668938,1737364248013,-500.0,0.00022328,3]
[349668939,1737364248023,-500.0,0.00022328,3]
[349668940,1737364248032,-500.0,0.00022328,3]
[349668941,1737364248042,-500.0,0.00022328,2]
[349668942,1737364248052,-2638.82,0.00022328,3]
[349668943,1737364248062,-784.34,0.00022328,3]
[349668944,1737364248071,-174.52746545,0.00022328,3]
[349668945,1737364248081,-518.81,0.00022328,3]
[349668946,1737364248091,-2523.23,0.00022328,3]
[349668947,1737364248101,-500.0,0.00022328,3]
[349668948,1737364248111,-6468.15,0.00022328,3]
[349668949,1737364248121,-1364.4,0.00022328,3]
[349668950,1737364248131,-500.0,0.00022328,3]
[349668951,1737364248141,-500.0,0.00022328,3]
[349668952,1737364248150,-569.72,0.00022328,3]
[349668953,1737364248159,-500.0,0.00022328,3]
[349668954,1737364248169,-500.0,0.00022328,3]
[349668955,1737364248178,-1469.35,0.00022328,3]
[349668956,1737364248190,-500.0,0.00022328,3]
[349668957,1737364248199,-500.0,0.00022328,3]
[349668958,1737364248209,-500.0,0.00022328,3]
[349668959,1737364248218,-170.02,0.00022328,3]
[349668960,1737364248227,-2093.71,0.00022328,3]
[349668961,1737364248236,-500.0,0.00022328,3]
[349668962,1737364248246,-500.85,0.00022328,3]
[349668963,1737364248256,-500.0,0.00022328,3]
[349668964,1737364248267,-500.0,0.00022328,3]
[349668965,1737364248277,-500.0,0.00022328,3]
[349668966,1737364248287,-500.0,0.00022328,3]
[349668967,1737364248298,-1000.16,0.00022328,3]
[349668968,1737364248309,-500.0,0.00022328,3]
[349668969,1737364248319,-500.0,0.00022328,3]
[349668970,1737364248329,-500.0,0.00022328,3]
[349668971,1737364248338,-500.0,0.00022328,3]
[349668972,1737364248348,-156.621998,0.00022356,5]
[349668973,1737364248358,-156.621998,0.00022365,7]
[349668974,1737364248368,-500.0,0.00022465,3]
[349668975,1737364248378,-500.0,0.00022465,3]
[349668976,1737364248387,-500.0,0.00022465,3]
[349668977,1737364248396,-500.0,0.00022465,3]
[349668978,1737364248405,-621.15037079,0.00022465,3]
[349668979,1737364248415,-500.0,0.00022465,3]
[349668980,1737364248424,-500.0,0.00022465,3]
[349668981,1737364248436,-500.0,0.00022465,2]
[349668982,1737364248445,-2638.82,0.00022465,3]
[349668983,1737364248455,-784.34,0.00022465,3]
[349668984,1737364248465,-518.81,0.00022465,3]
[349668985,1737364248476,-2523.23,0.00022465,3]
[349668986,1737364248486,-500.0,0.00022465,3]
[349668987,1737364248496,-6468.15,0.00022465,3]
[349668988,1737364248505,-1364.4,0.00022465,3]
[349668989,1737364248515,-500.0,0.00022465,3]
[349668990,1737364248524,-500.0,0.00022465,3]
[349668991,1737364248534,-569.72,0.00022465,3]
[349668992,1737364248545,-500.0,0.00022465,3]
[349668993,1737364248555,-500.0,0.00022465,3]
[349668994,1737364248565,-1469.35,0.00022465,3]
[349668995,1737364248576,-500.0,0.00022465,3]
[349668996,1737364248585,-500.0,0.00022465,3]
[349668997,1737364248595,-500.0,0.00022465,3]
[349668998,1737364248604,-2093.71,0.00022465,3]
[349668999,1737364248614,-500.0,0.00022465,3]
[349669000,1737364248624,-500.85,0.00022465,3]
[349669001,1737364248633,-500.0,0.00022465,3]
[349669002,1737364248643,-500.0,0.00022465,3]
[349669003,1737364248652,-500.0,0.00022465,3]
[349669004,1737364248662,-500.0,0.00022465,3]
[349669005,1737364248671,-1000.16,0.00022465,3]
[349669006,1737364248681,-500.0,0.00022465,3]
[349669007,1737364248694,-500.0,0.00022465,3]
[349669008,1737364248703,-500.0,0.00022465,3]
[349669009,1737364248713,-500.0,0.00022465,3]
[349669010,1737364248722,-1254.41,0.000225,2]
[349669011,1737364248731,-100730.83027448,0.0002258,2]
[349669012,1737364248740,-500.0,0.00022602,3]
[349669013,1737364248750,-500.0,0.00022602,3]
[349669014,1737364248759,-500.0,0.00022602,3]
[349669015,1737364248769,-500.0,0.00022602,3]
[349669016,1737364248779,-500.0,0.00022602,3]
[349669017,1737364248789,-500.0,0.00022602,3]
[349669018,1737364248797,-500.0,0.00022602,2]
[349669019,1737364248806,-2638.82,0.00022602,3]
[349669020,1737364248815,-784.34,0.00022602,3]
[349669021,1737364248825,-518.81,0.00022602,3]
[349669022,1737364248834,-2523.23,0.00022602,3]
[349669023,1737364248844,-500.0,0.00022602,3]
[349669024,1737364248854,-6468.15,0.00022602,3]
[349669025,1737364248864,-1364.4,0.00022602,3]
[349669026,1737364248874,-500.0,0.00022602,3]
[349669027,1737364248886,-500.0,0.00022602,3]
[349669028,1737364248896,-569.72,0.00022602,3]
[349669029,1737364248905,-500.0,0.00022602,3]
[349669030,1737364248915,-500.0,0.00022602,3]
[349669031,1737364248924,-1469.35,0.00022602,3]
[349669032,1737364248940,-500.0,0.00022602,3]
[349669033,1737364248950,-500.0,0.00022602,3]
[349669034,1737364248961,-500.0,0.00022602,3]
[349669035,1737364248973,-2093.71,0.00022602,3]
[349669036,1737364248983,-500.0,0.00022602,3]
[349669037,1737364248994,-500.85,0.00022602,3]
[349669038,1737364249004,-500.0,0.00022602,3]
[349669039,1737364249015,-500.0,0.00022602,3]
[349669040,1737364249024,-500.0,0.00022602,3]
[349669041,1737364249034,-500.0,0.00022602,3]
[349669042,1737364249044,-1000.16,0.00022602,3]
[349669043,1737364249054,-500.0,0.00022602,3]
[349669044,1737364249063,-500.0,0.00022602,3]
[349669045,1737364249072,-500.0,0.00022602,3]
[349669046,1737364249081,-500.0,0.00022602,3]
[349669047,1737364249091,-606.53511949,0.00022606,2]
[349669048,1737364249100,-500.0,0.00022739,3]
[349669049,1737364249110,-500.0,0.00022739,3]
[349669050,1737364249119,-500.0,0.00022739,3]
[349669051,1737364249128,-500.0,0.00022739,3]
[349669052,1737364249138,-500.0,0.00022739,3]
[349669053,1737364249147,-500.0,0.00022739,3]
[349669054,1737364249156,-500.0,0.00022739,2]
[349669055,1737364249165,-2638.82,0.00022739,3]
[349669056,1737364249175,-784.34,0.00022739,3]
[349669057,1737364249189,-518.81,0.00022739,3]
[349669058,1737364249198,-2523.23,0.00022739,3]
[349669059,1737364249208,-500.0,0.00022739,3]
[349669060,1737364249217,-6468.15,0.00022739,3]
[349669061,1737364249226,-1364.4,0.00022739,3]
[349669062,1737364249236,-500.0,0.00022739,3]
[349669063,1737364249245,-390.04774368,0.00022739,3]
[349669064,1737364249254,-569.72,0.00022739,3]
[349669065,1737364249263,-583.32636264,0.00022739,3]
[349669066,1737364249273,-500.0,0.00022739,3]
[349669067,1737364249283,-1469.35,0.00022739,3]
[349669068,1737364249292,-500.0,0.00022739,3]
[349669069,1737364249301,-500.0,0.00022739,3]
[349669070,1737364249311,-160.79525057,0.00022739,3]
[349669071,1737364249320,-2093.71,0.00022739,3]
[349669072,1737364249329,-162.34728794,0.00022739,3]
[349669073,1737364249338,-500.85,0.00022739,3]
[349669074,1737364249348,-500.0,0.00022739,3]
[349669075,1737364249358,-500.0,0.00022739,3]
[349669076,1737364249367,-500.0,0.00022739,3]
[349669077,1737364249377,-500.0,0.00022739,3]
[349669078,1737364249386,-1000.16,0.00022739,3]
[349669079,1737364249396,-500.0,0.00022739,3]
[349669080,1737364249405,-500.0,0.00022739,3]
[349669081,1737364249415,-500.0,0.00022739,3]
[349669082,1737364249425,-500.0,0.00022739,3]
[349669083,1737364249438,-420.0,0.00022852,2]
[349669084,1737364249447,-500.0,0.00022876,3]
[349669085,1737364249457,-500.0,0.00022876,3]
[349669086,1737364249466,-413.54,0.00022876,3]
[349669087,1737364249476,-500.0,0.00022876,3]
[349669088,1737364249485,-500.0,0.00022876,3]
[349669089,1737364249494,-330.29374177,0.00022876,3]
[349669090,1737364249503,-500.0,0.00022876,2]
[349669091,1737364249513,-2638.82,0.00022876,3]
[349669092,1737364249522,-784.34,0.00022876,3]
[349669093,1737364249531,-518.81,0.00022876,3]
[349669094,1737364249540,-2523.23,0.00022876,3]
[349669095,1737364249549,-500.0,0.00022876,3]
[349669096,1737364249558,-6468.15,0.00022876,3]
[349669097,1737364249567,-1364.4,0.00022876,3]
[349669098,1737364249576,-243.81046255,0.00022876,3]
[349669099,1737364249586,-569.72,0.00022876,3]
[349669100,1737364249595,-500.0,0.00022876,3]
[349669101,1737364249604,-1469.35,0.00022876,3]
[349669102,1737364249613,-500.0,0.00022876,3]
[349669103,1737364249622,-500.0,0.00022876,3]
[349669104,1737364249631,-2093.71,0.00022876,3]
[349669105,1737364249640,-500.85,0.00022876,3]
[349669106,1737364249649,-500.0,0.00022876,3]
[349669107,1737364249658,-500.0,0.00022876,3]
[349669108,1737364249668,-500.0,0.00022876,3]
[349669109,1737364249677,-500.0,0.00022876,3]
[349669110,1737364249690,-1000.16,0.00022876,3]
[349669111,1737364249700,-500.0,0.00022876,3]
[349669112,1737364249709,-500.0,0.00022876,3]
[349669113,1737364249718,-500.0,0.00022876,3]
[349669114,1737364249727,-500.0,0.00022876,3]
[349669115,1737364249736,-2365.61021707,0.000229,3]
[349669116,1737364249745,-2222.0,0.00022929,4]
[349669117,1737364249755,-2365.61021697,0.00022969,3]
[349669118,1737364249764,-7438.69753278,0.00023,2]
[349669119,1737364249773,-845.0,0.00023,2]
[349669120,1737364249782,-500.0,0.00023,2]
[349669121,1737364249791,-500.0,0.00023,2]
[349669122,1737364249800,-500.0,0.00023,2]
[349669123,1737364249808,-500.0,0.00023,2]
[349669124,1737364249817,-500.0,0.00023,2]
[349669125,1737364249827,-500.0,0.00023,2]
[349669126,1737364249836,-500.0,0.00023,2]
[349669127,1737364249845,-500.0,0.00023,2]
[349669128,1737364249855,-500.0,0.00023,2]
[349669129,1737364249865,-500.0,0.00023,2]
[349669130,1737364249874,-500.0,0.00023,2]
[349669131,1737364249885,-500.0,0.00023,2]
[349669132,1737364249896,-500.0,0.00023,2]
[349669133,1737364249905,-500.0,0.00023,2]
[349669134,1737364249917,-500.0,0.00023,2]
[349669135,1737364249927,-500.0,0.00023,2]
[349669136,1737364249943,-500.0,0.00023,2]
[349669137,1737364249952,-500.0,0.00023,2]
[349669138,1737364249962,-500.0,0.00023,2]
[349669139,1737364249972,-500.0,0.00023,2]
[349669140,1737364249981,-500.0,0.00023,2]
[349669141,1737364249991,-500.0,0.00023,2]
[349669142,1737364250000,-500.0,0.00023,2]
[349669143,1737364250010,-500.0,0.00023,2]
[349669144,1737364250019,-500.0,0.00023,2]
[349669145,1737364250028,-500.0,0.00023,2]
[349669146,1737364250037,-500.0,0.00023,2]
[349669147,1737364250046,-500.0,0.00023,2]
[349669148,1737364250055,-500.0,0.00023,2]
[349669149,1737364250064,-500.0,0.00023,2]
[349669150,1737364250074,-500.0,0.00023,2]
[349669151,1737364250082,-500.0,0.00023,2]
[349669152,1737364250091,-500.0,0.00023,2]
[349669153,1737364250100,-500.0,0.00023,2]
[349669154,1737364250109,-500.0,0.00023,2]
[349669155,1737364250118,-500.0,0.00023,2]
[349669156,1737364250127,-500.0,0.00023,2]
[349669157,1737364250136,-500.0,0.00023,2]
[349669158,1737364250145,-500.0,0.00023,2]
[349669159,1737364250155,-500.0,0.00023,2]
[349669160,1737364250164,-500.0,0.00023,2]
[349669161,1737364250174,-500.0,0.00023,2]
[349669162,1737364250186,-500.0,0.00023,2]
[349669163,1737364250195,-500.0,0.00023,2]
[349669164,1737364250204,-500.0,0.00023,2]
[349669165,1737364250214,-500.0,0.00023,2]
[349669166,1737364250223,-500.0,0.00023,2]
[349669167,1737364250232,-500.0,0.00023,2]
[349669168,1737364250242,-500.0,0.00023,2]
[349669169,1737364250251,-500.0,0.00023,2]
[349669170,1737364250260,-500.0,0.00023,2]
[349669171,1737364250269,-500.0,0.00023,2]
[349669172,1737364250279,-545.25,0.00023,2]
[349669173,1737364250288,-500.0,0.00023,2]
[349669174,1737364250297,-500.0,0.00023,2]
[349669175,1737364250306,-500.0,0.00023,2]
[349669176,1737364250315,-500.0,0.00023,2]
[349669177,1737364250324,-7438.69753278,0.00023,3]
[349669178,1737364250334,-500.0,0.00023012,2]
[349669179,1737364250343,-249.57710506,0.00023012,2]
[349669180,1737364250353,-348.97,0.00023013,3]
[349669181,1737364250362,-171.30600499,0.00023013,3]
[349669182,1737364250372,-500.0,0.00023013,3]
[349669183,1737364250382,-500.0,0.00023013,3]
[349669184,1737364250391,-500.0,0.00023013,2]
[349669185,1737364250400,-2638.82,0.00023013,3]
[349669186,1737364250410,-784.34,0.00023013,3]
[349669187,1737364250419,-518.81,0.00023013,3]
[349669188,1737364250428,-2523.23,0.00023013,3]
[349669189,1737364250441,-500.0,0.00023013,3]
[349669190,1737364250450,-6468.15,0.00023013,3]
[349669191,1737364250459,-1364.4,0.00023013,3]
[349669192,1737364250468,-569.72,0.00023013,3]
[349669193,1737364250478,-500.0,0.00023013,3]
[349669194,1737364250491,-1469.35,0.00023013,3]
[349669195,1737364250500,-500.0,0.00023013,3]
[349669196,1737364250511,-500.0,0.00023013,3]
[349669197,1737364250521,-2093.71,0.00023013,3]
[349669198,1737364250530,-500.85,0.00023013,3]
[349669199,1737364250539,-500.0,0.00023013,3]
[349669201,1737364250548,-500.0,0.00023013,3]
[349669203,1737364250557,-500.0,0.00023013,3]
[349669205,1737364250567,-500.0,0.00023013,3]
[349669207,1737364250576,-1000.16,0.00023013,3]
[349669208,1737364250586,-500.0,0.00023013,3]
[349669209,1737364250596,-500.0,0.00023013,3]
[349669210,1737364250605,-500.0,0.00023013,3]
[349669211,1737364250617,-500.0,0.00023013,3]
[349669212,1737364250626,-2365.61021697,0.00023038,3]
[349669213,1737364250636,-571.438,0.0002304,2]
[349669214,1737364250646,-2365.61021697,0.00023107,3]
[349669215,1737364250655,-230.22,0.0002315,3]
[349669216,1737364250665,-173.83,0.0002315,3]
[349669217,1737364250675,-500.0,0.0002315,2]
[349669218,1737364250687,-2638.82,0.0002315,3]
[349669219,1737364250697,-784.34,0.0002315,3]
[349669220,1737364250707,-518.81,0.0002315,3]
[349669221,1737364250716,-2523.23,0.0002315,3]
[349669222,1737364250726,-500.0,0.0002315,3]
[349669223,1737364250736,-6468.15,0.0002315,3]
[349669224,1737364250746,-1364.4,0.0002315,3]
[349669225,1737364250755,-569.72,0.0002315,3]
[349669226,1737364250765,-500.0,0.0002315,3]
[349669227,1737364250774,-1469.35,0.0002315,3]
[349669228,1737364250784,-500.0,0.0002315,3]
[349669229,1737364250794,-500.0,0.0002315,3]
[349669230,1737364250804,-2093.71,0.0002315,3]
[349669232,1737364250814,-500.85,0.0002315,3]
[349669234,1737364250823,-446.6500515,0.0002315,3]
[349669236,1737364250832,-309.84127768,0.0002315,3]
[349669238,1737364250842,-500.0,0.0002315,3]
[349669240,1737364250851,-500.0,0.0002315,3]
[349669241,1737364250860,-1000.16,0.0002315,3]
[349669243,1737364250870,-214.17520501,0.0002315,3]
[349669245,1737364250883,-500.0,0.0002315,3]
[349669247,1737364250892,-500.0,0.0002315,3]
[349669249,1737364250901,-500.0,0.0002315,3]
[349669251,1737364250911,-2365.61021697,0.00023176,3]
[349669253,1737364250920,-2365.61021697,0.00023245,3]
[349669255,1737364250930,-502.32626281,0.00023276,2]
[349669269,1737364250942,-600.0,0.00023276,2]
[349669271,1737364251063,-500.0,0.00023287,2]
[349669273,1737364251072,-2638.82,0.00023287,3]
[349669275,1737364251082,-784.34,0.00023287,3]
[349669277,1737364251091,-518.81,0.00023287,3]
[349669280,1737364251101,-2523.23,0.00023287,3]
[349669282,1737364251110,-500.0,0.00023287,3]
[349669284,1737364251119,-6468.15,0.00023287,3]
[349669286,1737364251129,-1364.4,0.00023287,3]
[349669288,1737364251138,-569.72,0.00023287,3]
[349669290,1737364251147,-500.0,0.00023287,3]
[349669292,1737364251156,-1469.35,0.00023287,3]
[349669294,1737364251166,-500.0,0.00023287,3]
[349669296,1737364251175,-500.0,0.00023287,3]
[349669298,1737364251187,-2093.71,0.00023287,3]
[349669300,1737364251196,-500.85,0.00023287,3]
[349669302,1737364251206,-310.86086393,0.00023287,3]
[349669304,1737364251215,-500.0,0.00023287,3]
[349669306,1737364251225,-1000.16,0.00023287,3]
[349669308,1737364251234,-500.0,0.00023287,3]
[349669310,1737364251244,-500.0,0.00023287,3]
[349669312,1737364251254,-500.0,0.00023287,3]
[349669314,1737364251263,-2365.61021697,0.00023314,3]
[349669316,1737364251272,-2365.61021697,0.00023383,3]
[349669318,1737364251281,-500.0,0.00023424,2]
[349669320,1737364251291,-2638.82,0.00023424,3]
[349669322,1737364251301,-784.34,0.00023424,3]
[349669324,1737364251312,-518.81,0.00023424,3]
[349669327,1737364251321,-2523.23,0.00023424,3]
[349669329,1737364251331,-500.0,0.00023424,3]
[349669331,1737364251340,-6468.15,0.00023424,3]
[349669333,1737364251349,-1364.4,0.00023424,3]
[349669335,1737364251358,-569.72,0.00023424,3]
[349669337,1737364251367,-500.0,0.00023424,3]
[349669339,1737364251377,-1469.35,0.00023424,3]
[349669341,1737364251388,-500.0,0.00023424,3]
[349669343,1737364251397,-500.0,0.00023424,3]
[349669345,1737364251407,-2093.71,0.00023424,3]
[349669347,1737364251416,-500.85,0.00023424,3]
[349669349,1737364251425,-500.0,0.00023424,3]
[349669351,1737364251436,-1000.16,0.00023424,3]
[349669353,1737364251445,-500.0,0.00023424,3]
[349669355,1737364251455,-500.0,0.00023424,3]
[349669357,1737364251464,-500.0,0.00023424,3]
[349669359,1737364251474,-2365.61021697,0.00023452,3]
[349669361,1737364251483,-137115.07057044,0.000235,15]
[349669369,1737364251554,-11360.63333642,0.000235,15]
[349669372,1737364251565,-370.6,0.000235,15]
[349669374,1737364251576,-2971.89626176,0.000235,15]
[349670101,1737364812550,161.490841,0.00013973,2]
[349670119,1737365408442,2279.5,0.00024,120]
[349670198,1737365432889,-308.36293649,0.000189,2]
[349670200,1737365432899,-20645.2611467,0.0002,2]
[349670202,1737365432909,-5188.6148995,0.0002,2]
[349670204,1737365432919,-171.072156,0.00021453,2]
[349670206,1737365432929,-154.838681,0.00021801,7]
[349670209,1737365432939,-154.838681,0.00021834,4]
[349670211,1737365432948,-4999.999999,0.0002191,2]
[349670213,1737365432958,-158.74,0.00021917,2]
[349670214,1737365432967,-260.914,0.00021917,2]
[349670216,1737365432976,-500.0,0.00021917,3]
[349670218,1737365432986,-55.35750031,0.00021917,3]
[349670219,1737365433000,-444.64249969,0.00021917,3]
[349670220,1737365433010,-260.26,0.00021917,3]
[349670221,1737365433020,-500.0,0.00021917,3]
[349670222,1737365433031,-266.54251737,0.00021917,3]
[349670223,1737365433040,-500.0,0.00021917,2]
[349670225,1737365433050,-500.0,0.00021917,3]
[349670227,1737365433060,-500.0,0.00021917,3]
[349670229,1737365433070,-500.0,0.00021917,3]
[349670231,1737365433080,-873.75498294,0.00021917,3]
[349670233,1737365433095,-387.85501706,0.00021917,3]
[349670235,1737365433106,-500.0,0.00021917,3]
[349670236,1737365433116,-682.2,0.00021917,3]
[349670237,1737365433127,-3697.22,0.00021917,3]
[349670238,1737365433137,-500.0,0.00021917,3]
[349670239,1737365433147,-500.0,0.00021917,3]
[349670241,1737365433156,-786.27,0.00021917,3]
[349670243,1737365433166,-500.0,0.00021917,3]
[349670245,1737365433175,-500.0,0.00021917,3]
[349670247,1737365433185,-500.0,0.00021917,3]
[349670249,1737365433194,-500.0,0.00021917,3]
[349670251,1737365433204,-603.28,0.00021917,3]
[349670253,1737365433214,-500.0,0.00021917,3]
[349670255,1737365433224,-500.0,0.00021917,3]
[349670257,1737365433234,-538.68,0.00021917,3]
[349670258,1737365433243,-500.0,0.00021917,3]
[349670261,1737365433253,-615.45,0.00021917,3]
[349670263,1737365433263,-500.0,0.00021917,3]
[349670265,1737365433276,-607.6,0.00021917,3]
[349670267,1737365433286,-500.0,0.00021917,3]
[349670269,1737365433296,-500.0,0.00021917,3]
[349670271,1737365433307,-500.0,0.00021917,3]
[349670272,1737365433316,-611.81,0.00021917,3]
[349670274,1737365433326,-1720.63,0.00021917,3]
[349670276,1737365433335,-500.0,0.00021917,3]
[349670278,1737365433348,-500.0,0.00021917,3]
[349670280,1737365433358,-154.838681,0.00021929,4]
[349670282,1737365433368,-154.838681,0.00021989,7]
[349670284,1737365433378,-1000.0,0.00022,22]
[349670287,1737365433388,-1000.0,0.00022,2]
[349670289,1737365433398,-154.838681,0.00022024,4]
[349670291,1737365433408,-500.0,0.00022054,3]
[349670293,1737365433418,-500.0,0.00022054,2]
[349670295,1737365433428,-500.0,0.00022054,3]
[349670297,1737365433438,-500.0,0.00022054,3]
[349670299,1737365433448,-1261.61,0.00022054,3]
[349670301,1737365433458,-500.0,0.00022054,3]